{"text_format":"1","workbook":"xlsx","n_sheets":2,"sheets":["HANFApristup","Izvjestaji"],"not_rendered":{"charts":0,"images":3,"macros":1,"external_links":0,"defined_names":2,"comments":0,"pivot_tables":0},"unopened":[],"bounds":{"document_bytes":16777216,"sheet_cells":100000,"rows_first":2000,"rows_last":500,"rows_between":2000,"halvings":0,"cell_chars":16384,"cell_head_chars":4096},"cells_cut":0,"cells_raw":0,"read":"whole","date_system":"1900"}

{"sheet":"HANFApristup","index":0,"n_rows":51,"n_cols":10,"rows_kept":51,"cut":false,"hidden":false,"merged":[[46,8,46,9],[47,8,47,9],[49,8,49,9],[48,8,48,9],[45,8,45,9],[10,2,10,9],[32,2,32,7],[50,2,50,3],[18,2,18,9],[3,1,3,9],[4,1,4,9],[6,2,6,9],[7,2,7,9],[8,2,8,9],[20,3,20,6],[22,2,22,7],[24,2,24,7],[26,2,26,7],[28,2,28,7],[30,2,30,7],[9,2,9,9],[43,8,43,9],[44,8,44,9],[11,2,11,5],[12,2,12,5],[15,2,15,5],[16,2,16,5],[34,2,34,7],[36,2,36,7],[38,2,38,7],[40,2,40,7],[42,2,42,9],[12,8,12,9],[16,8,16,9],[15,8,15,9],[14,2,14,9],[11,8,11,9]]}
[]
[]
[]
[null,"PRISTUPNICA"]
[null,"za dostavu podataka u elektroničkom obliku"]
[]
[null,"1."," Podaci o podnositelju - pravnoj ili fizičkoj osobi na koju se Pristupnica odnosi "]
[]
[null,null,"naziv podnositelja"]
[]
[null,null,"sjedište podnositelja - mjesto i adresa"]
[]
[null,null,"matični broj / OIB podnositelja",null,null,null,null,null,"broj telefona za kontakt"]
[]
[null,"2.","Podaci o fizičkoj osobi ovlaštenoj za korištenje servisa u ime podnositelja na kojeg se Pristupnica odnosi"]
[]
[null,null,"ime i prezime ovlaštenog korisnika",null,null,null,null,null,"broj osobne iskaznice ovlaštenog korisnika"]
[]
[null,"3.","Popis izvještaja koje je osoba ovlaštena dostavljati i obveznika za koje ih je ovlaštena dostavljati"]
[]
[null,null,null,"Izvještaj",null,null,null,null,null,"Naziv obveznika \n(ako se obveznik i podnositelj razlikuju)"]
[]
[null,"1.",""]
[]
[null,"2.",""]
[]
[null,"3.",""]
[]
[null,"4.",""]
[]
[null,"5.",""]
[]
[null,"6.",""]
[]
[null,"7.",""]
[]
[null,"8.",""]
[]
[null,"9.",""]
[]
[null,"10.",""]
[]
[null,"4.","Odobrenje osobe ovlaštene za zastupanje podnositelja"]
[]
[null,null,null,null,null,null,null,null,"potpis osobe ovlaštene za zastupanje"]
[]
[]
[null,null,null,null,null,null,null,null,"potpis osobe ovlaštene za zastupanje (II)"]
[]
[]
[null,"U",null,null,", dana"]

{"sheet":"Izvjestaji","index":1,"n_rows":184,"n_cols":7,"rows_kept":184,"cut":false,"hidden":true,"merged":[]}
["Code - Name","Code","Name"]
[{"$f":"CONCATENATE(,B2,\" - \",C2)","v":"AEI - Statistički godišnji izvještaji za mirovinske fondove (ECB)"},"AEI","Statistički godišnji izvještaji za mirovinske fondove (ECB)"]
[{"$f":"CONCATENATE(,B3,\" - \",C3)","v":"AEI_ODMF_ECB - Statistički godišnji izvještaji za dobrovoljne mirovinske fondove (EIOPA i ECB)"},"AEI_ODMF_ECB","Statistički godišnji izvještaji za dobrovoljne mirovinske fondove (EIOPA i ECB)"]
["AEI_OMF_ECB - Statistički godišnji izvještaji za obavezne mirovinske fondove (EIOPA i ECB)","AEI_OMF_ECB","Statistički godišnji izvještaji za obavezne mirovinske fondove (EIOPA i ECB)"]
["AES - Godišnji ECB izvještaj društva za osiguranje (Annual ECB Reporting Solo)","AES","Godišnji ECB izvještaj društva za osiguranje (Annual ECB Reporting Solo)"]
["AIFMD_DATAIF - AIF Reporting File","AIFMD_DATAIF","AIF Reporting File"]
["AIFMD_DATMAN - AIFM Reporting File","AIFMD_DATMAN","AIFM Reporting File",null,null,null,""]
["AK-ID - Izvještaj o adekvatnosti kapitala","AK-ID","Izvještaj o adekvatnosti kapitala"]
["AK-ID-R - Revidirani izvještaj o adekvatnosti kapitala","AK-ID-R","Revidirani izvještaj o adekvatnosti kapitala"]
["AK-SDUS - Izvještaj o adekvatnosti kapitala","AK-SDUS","Izvještaj o adekvatnosti kapitala"]
["AK-SDUS-G - Izvještaj o adekvatnosti kapitala-godišnji","AK-SDUS-G","Izvještaj o adekvatnosti kapitala-godišnji"]
["AK-SDVP - Izvještaj o adekvatnosti kapitala","AK-SDVP","Izvještaj o adekvatnosti kapitala"]
["ARG - Godišnje kvantitativne informacije grupe osiguratelja za Solventnost II","ARG","Godišnje kvantitativne informacije grupe osiguratelja za Solventnost II"]
["ARI - Godišnji izvještaj IORP-ova (Annual reporting Pension Funds individual)","ARI","Godišnji izvještaj IORP-ova (Annual reporting Pension Funds individual)"]
["ARM - Izvještaj o klijentima, transakcijama i prihodima ARM-a","ARM","Izvještaj o klijentima, transakcijama i prihodima ARM-a"]
["ARS - Godišnje kvantitativne informacije društva za osiguranje odnosno društva za reosiguranje za Solventnost II","ARS","Godišnje kvantitativne informacije društva za osiguranje odnosno društva za reosiguranje za Solventnost II"]
["BZ-ID - Izvješće o adekvatnosti kapitala","BZ-ID","Izvješće o adekvatnosti kapitala"]
["BZ-ID-R - Revidirano godišnje izvješće o adekvatnosti kapitala","BZ-ID-R","Revidirano godišnje izvješće o adekvatnosti kapitala"]
["CSDR7-G - Godišnji izvještaj o neuspjelim namirama","CSDR7-G","Godišnji izvještaj o neuspjelim namirama"]
["CSDR7-M - Mjesečni izvještaj o neuspjelim namirama","CSDR7-M","Mjesečni izvještaj o neuspjelim namirama"]
["CSDR9 - Izvještaj o internaliziranim namirama","CSDR9","Izvještaj o internaliziranim namirama"]
["D1-G - Izvještaj o početnom stanju (Day 1) za Solventnost II (Grupe osiguravatelja) ","D1-G","Izvještaj o početnom stanju (Day 1) za Solventnost II (Grupe osiguravatelja) "]
["D1-S - Day 1 SOLO","D1-S","Day 1 SOLO"]
["DATEQU - ZAPA - Equity Transparency Quantitative Data - ZAPA","DATEQU - ZAPA","Equity Transparency Quantitative Data - ZAPA"]
["DEPOZ_OSN - Depozitari - dostava elektroničkih dokumenata","DEPOZ_OSN","Depozitari - dostava elektroničkih dokumenata"]
["DI-DMF-G - Državna poticajna sredstva uplaćena članovima DMF-a","DI-DMF-G","Državna poticajna sredstva uplaćena članovima DMF-a"]
["DI-DMF-M - Podaci o članovima i doprinosima DMF-a","DI-DMF-M","Podaci o članovima i doprinosima DMF-a"]
["DI-DMF-T - Spolna i dobna struktura članova DMF-a","DI-DMF-T","Spolna i dobna struktura članova DMF-a"]
["DIV-BM - Diversity benchmarking GL","DIV-BM","Diversity benchmarking GL"]
["DORA_OSN - DORA - dostava elektroničkih dokumenata","DORA_OSN","DORA - dostava elektroničkih dokumenata"]
["DORA-IR - DORA-Izvještaj o značajnim IKT incidentima i prijetnjama","DORA-IR","DORA-Izvještaj o značajnim IKT incidentima i prijetnjama"]
["DORA-ROI - DORA Register of Information","DORA-ROI","DORA Register of Information"]
["DVCAP - Double Volume Cap Report","DVCAP","Double Volume Cap Report"]
["ESMA_CCP_Novi - ESMA_CCP_Novi data reporting","ESMA_CCP_Novi","ESMA_CCP_Novi data reporting"]
["FI-DMD_Novi - Financijski izvještaj FI-DMD - 2018","FI-DMD_Novi","Financijski izvještaj FI-DMD - 2018"]
["FI-DMF_Novi - Financijski izvještaj FI-DMF - 2018","FI-DMF_Novi","Financijski izvještaj FI-DMF - 2018"]
["FI-DZU_Novi - Financijski izvještaj društva za upravljanje UCITS fondova - 2018","FI-DZU_Novi","Financijski izvještaj društva za upravljanje UCITS fondova - 2018"]
["FI-FHB_Novi - Financijski izvještaj FHB","FI-FHB_Novi","Financijski izvještaj FHB"]
["FI-ID - Financijski izvještaj- Investicijsko društvo","FI-ID","Financijski izvještaj- Investicijsko društvo"]
["FI-OAIF_Novi - Financijski izvještaj otvoreni AIF - 2018","FI-OAIF_Novi","Financijski izvještaj otvoreni AIF - 2018"]
["FI-OMD_Novi - Financijski izvještaj FI-OMD - 2018","FI-OMD_Novi","Financijski izvještaj FI-OMD - 2018"]
["FI-OMF_Novi - Financijski izvještaj FI-OMF - 2018","FI-OMF_Novi","Financijski izvještaj FI-OMF - 2018"]
["FI-UAIF_Novi - Financijski izvještaj društvo za upravljanje AIF fondovima - 2018","FI-UAIF_Novi","Financijski izvještaj društvo za upravljanje AIF fondovima - 2018"]
["FI-UCITS_Novi - Financijski izvještaj UCITS - 2018","FI-UCITS_Novi","Financijski izvještaj UCITS - 2018"]
["FIZ_DISO-RE - Podaci o posrednicima-fizičkim osobama koje temeljem ugovora o radu ili drugog ugovornog odnosa obavljaju poslove distribucije osiguranja i/ili reosiguranja","FIZ_DISO-RE","Podaci o posrednicima-fizičkim osobama koje temeljem ugovora o radu ili drugog ugovornog odnosa obavljaju poslove distribucije osiguranja i/ili reosiguranja"]
["FI-ZAIF_Novi - Financijski izvještaj zatvoreni AIF - 2018","FI-ZAIF_Novi","Financijski izvještaj zatvoreni AIF - 2018"]
["FI-ZAIF-BPO_Novi - Financijski izvještaj zatvorenog AIF-a bez pravne osobnosti","FI-ZAIF-BPO_Novi","Financijski izvještaj zatvorenog AIF-a bez pravne osobnosti"]
["FPOSO_DISO-RE - Popis fizičkih(obrta) i pravnih osoba koje za društvo obavljaju poslove distribucije osiguranja i/ili reosiguranja","FPOSO_DISO-RE","Popis fizičkih(obrta) i pravnih osoba koje za društvo obavljaju poslove distribucije osiguranja i/ili reosiguranja"]
["FR-OSIG - Tromjesečno izvješće za potrebe statistike financijskih računa","FR-OSIG","Tromjesečno izvješće za potrebe statistike financijskih računa"]
["FSI-PO - Financijsko i statističko izvješće posrednika i sporednih posrednika u osiguranju i/ili reosiguranju","FSI-PO","Financijsko i statističko izvješće posrednika i sporednih posrednika u osiguranju i/ili reosiguranju"]
["G-FAKTORING - Godišnji izvještaj faktoring društava","G-FAKTORING","Godišnji izvještaj faktoring društava"]
["G-FAKTORING-LIK - Godišnji izvještaj faktoring društva u likvidaciju","G-FAKTORING-LIK","Godišnji izvještaj faktoring društva u likvidaciju"]
["G-FIDOLIZ - Godišnji financijski i dodatni izvještaj leasing društava","G-FIDOLIZ","Godišnji financijski i dodatni izvještaj leasing društava"]
["G-FIDOLIZ-LIK - Godišnji financijski i dodatni izvještaj leasing društava u likvidaciji","G-FIDOLIZ-LIK","Godišnji financijski i dodatni izvještaj leasing društava u likvidaciji"]
["GFIFZU - Godišnje financijsko izvješće Fonda za zaštitu ulagatelja","GFIFZU","Godišnje financijsko izvješće Fonda za zaštitu ulagatelja"]
["GFI-ID - Godišnji financijski izvještaj - Investicijska društva","GFI-ID","Godišnji financijski izvještaj - Investicijska društva"]
["GFI-IZD-KI - Godišnji financijski izvještaj za izdavatelje - Kreditne institucije","GFI-IZD-KI","Godišnji financijski izvještaj za izdavatelje - Kreditne institucije"]
["GFI-IZD-OSIG - Godišnji financijski izvještaj za izdavatelje - Društva za osiguranje","GFI-IZD-OSIG","Godišnji financijski izvještaj za izdavatelje - Društva za osiguranje"]
["GFI-IZD-POD - Godišnji financijski izvještaj za izdavatelje - Poduzeća","GFI-IZD-POD","Godišnji financijski izvještaj za izdavatelje - Poduzeća"]
["GFI-SDVP - Godišnji financijski izvještaj za središnji depozitorij vrijednosnih papira","GFI-SDVP","Godišnji financijski izvještaj za središnji depozitorij vrijednosnih papira"]
["GFISKDD - Godišnji financijski izvještaji Središnjeg klirinškog depozitarnog društva","GFISKDD","Godišnji financijski izvještaji Središnjeg klirinškog depozitarnog društva"]
["GIKU-UOP-DION - Upitnik o praksama upravljanja za izdavatelje dionica","GIKU-UOP-DION","Upitnik o praksama upravljanja za izdavatelje dionica"]
["GIKU-UOP-OBV - Upitnik o praksama upravljanja za izdavatelje obveznica","GIKU-UOP-OBV","Upitnik o praksama upravljanja za izdavatelje obveznica"]
["GIKU-UOU-DION - Upitnik o usklađenosti za izdavatelje dionica","GIKU-UOU-DION","Upitnik o usklađenosti za izdavatelje dionica"]
["GSTAT-SDVP - Godišnji statistički podaci SKDD-a","GSTAT-SDVP","Godišnji statistički podaci SKDD-a"]
["HR-LEAS - Kvartalno izvješće leasing društva","HR-LEAS","Kvartalno izvješće leasing društva"]
[{"$f":"CONCATENATE(,B67,\" - \",C67)","v":"HR-TSMF - Kvartalno izvješće društva za upravljanje mirovinskim fondovima"},"HR-TSMF","Kvartalno izvješće društva za upravljanje mirovinskim fondovima"]
["HUO_FIZ - HUO - obavijesti o upisu i promjeni relevantnih poslovnih subjekata (fizičke osobe)","HUO_FIZ","HUO - obavijesti o upisu i promjeni relevantnih poslovnih subjekata (fizičke osobe)"]
["HUO_OSN - HUO - dostava elektroničkih dokumenata","HUO_OSN","HUO - dostava elektroničkih dokumenata"]
["HUO_OSS - HUO - obavijesti o upisu i promjeni općih podataka subjekata nadzora ","HUO_OSS","HUO - obavijesti o upisu i promjeni općih podataka subjekata nadzora "]
["IFKLAS - Izvještaj o klasifikaciji investicijskih fondova","IFKLAS","Izvještaj o klasifikaciji investicijskih fondova"]
["IFON - Mjesečno izvješće društva za upravljanje investicijskim fondovima","IFON","Mjesečno izvješće društva za upravljanje investicijskim fondovima"]
["IGT-EMIR - Obrazac o podnošenju obavijesti o namjeri primjene izuzeća","IGT-EMIR","Obrazac o podnošenju obavijesti o namjeri primjene izuzeća"]
["IGT-IM-VM-EMIR - Obrazac - primjena IGT izuzeća od obveze iz članka 11. EMIR-a","IGT-IM-VM-EMIR","Obrazac - primjena IGT izuzeća od obveze iz članka 11. EMIR-a"]
["IK-DMD - Izvještaj o kapitalu DMD","IK-DMD","Izvještaj o kapitalu DMD"]
["IK-DZU-UCITS - Izvještaj o izračunu regulatornog kapitala DZU","IK-DZU-UCITS","Izvještaj o izračunu regulatornog kapitala DZU"]
["IK-OMD - Izvještaj o kapitalu OMD","IK-OMD","Izvještaj o kapitalu OMD"]
["IK-UAIF - Izvještaj o izračunu regulatornog kapitala UAIF","IK-UAIF","Izvještaj o izračunu regulatornog kapitala UAIF"]
["IL-OMF - Izvještaj o likvidnosti obveznih mirovinskih fondova","IL-OMF","Izvještaj o likvidnosti obveznih mirovinskih fondova"]
["IMOA - Izvješće i mišljenje imenovanog ovlaštenog aktuara uz godišnje izvješće","IMOA","Izvješće i mišljenje imenovanog ovlaštenog aktuara uz godišnje izvješće"]
["IOS_FOE - Mjesečne informacije društava za osiguranje i reosiguranje - Podružnice","IOS_FOE","Mjesečne informacije društava za osiguranje i reosiguranje - Podružnice"]
["IOS_G - Godišnje informacije društava za osiguranje i reosiguranje","IOS_G","Godišnje informacije društava za osiguranje i reosiguranje"]
["IOS_M - Mjesečne informacije društava za osiguranje i reosiguranje","IOS_M","Mjesečne informacije društava za osiguranje i reosiguranje"]
["IOS_T - Tromjesečne informacije društava za osiguranje i reosiguranje","IOS_T","Tromjesečne informacije društava za osiguranje i reosiguranje"]
["IUL - Izvještaj o ulaganjima","IUL","Izvještaj o ulaganjima"]
["IZPFD - Izvještaj o pritužbama članova fonda (DMF)","IZPFD","Izvještaj o pritužbama članova fonda (DMF)"]
["IZPFO - Izvještaj o pritužbama članova fonda (OMF)","IZPFO","Izvještaj o pritužbama članova fonda (OMF)"]
["IZPPO - Izvještaj o pritužbama i prigovorima zainteresiranih osoba","IZPPO","Izvještaj o pritužbama i prigovorima zainteresiranih osoba"]
["LEASDR_FIZ - Leasing društva obavijesti o upisu i promjeni relevantnih poslovnih subjekata (fizičke osobe)","LEASDR_FIZ","Leasing društva obavijesti o upisu i promjeni relevantnih poslovnih subjekata (fizičke osobe)"]
["LEASDR_OSN - Leasing društva dostava elektroničkih dokumenata","LEASDR_OSN","Leasing društva dostava elektroničkih dokumenata"]
["LEASDR_OSS - Leasing društva obavijesti o upisu i promjeni općih podataka subjekata nadzora","LEASDR_OSS","Leasing društva obavijesti o upisu i promjeni općih podataka subjekata nadzora"]
["LEASDR_PRAV - Leasing društva obavijesti o upisu i promjeni relevantnih poslovnih subjekata (pravne osobe)","LEASDR_PRAV","Leasing društva obavijesti o upisu i promjeni relevantnih poslovnih subjekata (pravne osobe)"]
["LI-SDUS - Izvještaj o likvidnosti","LI-SDUS","Izvještaj o likvidnosti"]
["MMFR - Izvještaj novčanog fonda","MMFR","Izvještaj novčanog fonda"]
["MMFR-Q - Kvartalni izvještaj novčanog fonda","MMFR-Q","Kvartalni izvještaj novčanog fonda"]
["MOD_FIZ - MOD - obavijesti o upisu i promjeni relevantnih poslovnih subjekata (fizičke osobe)","MOD_FIZ","MOD - obavijesti o upisu i promjeni relevantnih poslovnih subjekata (fizičke osobe)"]
["MOD_G - Godišnje izvješće mirovinskog osiguravajućeg društva","MOD_G","Godišnje izvješće mirovinskog osiguravajućeg društva"]
["MOD_OSN - MOD - dostava elektroničkih dokumenata","MOD_OSN","MOD - dostava elektroničkih dokumenata"]
["MOD_OSS - MOD - obavijesti o upisu i promjeni općih podataka subjekata nadzora","MOD_OSS","MOD - obavijesti o upisu i promjeni općih podataka subjekata nadzora"]
["MOD_PRAV - MOD - obavijesti o upisu i promjeni relevantnih poslovnih subjekata (pravne osobe)","MOD_PRAV","MOD - obavijesti o upisu i promjeni relevantnih poslovnih subjekata (pravne osobe)"]
["MOD_T - Tromjesečno izvješće mirovinskog osiguravajućeg društva","MOD_T","Tromjesečno izvješće mirovinskog osiguravajućeg društva"]
["MOD-IMOA - Izvješće i mišljenje imenovanog ovlaštenog aktuara uz godišnje izvješće","MOD-IMOA","Izvješće i mišljenje imenovanog ovlaštenog aktuara uz godišnje izvješće"]
["MOD-IN-MJESECNO - Izvještaj o izračunu naknade za upravljanje imovinom","MOD-IN-MJESECNO","Izvještaj o izračunu naknade za upravljanje imovinom"]
["MOD-MJESECNO - Mjesečno izvješće mirovinskog osiguravajućeg društva","MOD-MJESECNO","Mjesečno izvješće mirovinskog osiguravajućeg društva"]
["NAV - Izvještaj o izračunu neto imovine","NAV","Izvještaj o izračunu neto imovine"]
["NE-TQD - Non-Equity Transparency Quant Data Report","NE-TQD","Non-Equity Transparency Quant Data Report"]
["NI-NS - Nadzorni izvještaj-izvještaj o stanju novčanih sredstava klijenta","NI-NS","Nadzorni izvještaj-izvještaj o stanju novčanih sredstava klijenta"]
["NI-PD - Nadzorni izvještaj - Izvještaj o prodaji/distribuciji investicijskih proizvoda","NI-PD","Nadzorni izvještaj - Izvještaj o prodaji/distribuciji investicijskih proizvoda"]
["NI-PR - Nadzorni izvještaj-Izvještaj o prihodima i rashodima čl. 5 ZTK","NI-PR","Nadzorni izvještaj-Izvještaj o prihodima i rashodima čl. 5 ZTK"]
["NI-UP - Nadzorni izvještaj-izvještaj o upravljanju portfeljem,strukturi imovine,klijenata i naknadama","NI-UP","Nadzorni izvještaj-izvještaj o upravljanju portfeljem,strukturi imovine,klijenata i naknadama"]
["NI-VP - Nadzorni izvještaj - izvještaj o financijskim instrumentima u vlastitom portfelju društva","NI-VP","Nadzorni izvještaj - izvještaj o financijskim instrumentima u vlastitom portfelju društva"]
["NLS-ID - Izvještaj o pokazatelju likvidnosti","NLS-ID","Izvještaj o pokazatelju likvidnosti"]
["ORD-D - Orders data","ORD-D","Orders data"]
["ORG-IS - Upitnik o rizicima","ORG-IS","Upitnik o rizicima"]
["ORSA-G - Izvješće o vlastitoj procjeni rizika i solventnosti društva za osiguranje - GROUP","ORSA-G","Izvješće o vlastitoj procjeni rizika i solventnosti društva za osiguranje - GROUP"]
["ORSA-S - Izvješće o vlastitoj procjeni rizika i solventnosti društva za osiguranje - SOLO","ORSA-S","Izvješće o vlastitoj procjeni rizika i solventnosti društva za osiguranje - SOLO"]
["OSREOS_FIZ - OSIG i REOSIG - obavijesti o upisu i promjeni relevantnih poslovnih subjekata (fizičke osobe)","OSREOS_FIZ","OSIG i REOSIG - obavijesti o upisu i promjeni relevantnih poslovnih subjekata (fizičke osobe)"]
["OSREOS_OSN - OSIG i REOSIG - dostava elektroničkih dokumenata","OSREOS_OSN","OSIG i REOSIG - dostava elektroničkih dokumenata"]
["OSREOS_OSS - OSIG i REOSIG - obavijesti o upisu i promjeni općih podataka subjekata nadzora","OSREOS_OSS","OSIG i REOSIG - obavijesti o upisu i promjeni općih podataka subjekata nadzora"]
["OSREOS_PRAV - OSIG i REOSIG - obavijesti o upisu i promjeni relevantnih poslovnih subjekata (pravne osobe)","OSREOS_PRAV","OSIG i REOSIG - obavijesti o upisu i promjeni relevantnih poslovnih subjekata (pravne osobe)"]
["PE-SDUS - Poslovne evidencije središnje druge ugovorne stranke","PE-SDUS","Poslovne evidencije središnje druge ugovorne stranke"]
["PFIFZU - Polugodišnje financijsko izvješće Fonda za zaštitu ulagatelja","PFIFZU","Polugodišnje financijsko izvješće Fonda za zaštitu ulagatelja"]
["PFI-IZD-KI - Polugodišnji financijski izvještaj za izdavatelje - Kreditne institucije","PFI-IZD-KI","Polugodišnji financijski izvještaj za izdavatelje - Kreditne institucije"]
["PFI-IZD-OSIG - Polugodišnji financijski izvještaj za izdavatelje - Društva za osiguranje","PFI-IZD-OSIG","Polugodišnji financijski izvještaj za izdavatelje - Društva za osiguranje"]
["PFI-IZD-POD - Polugodišnji financijski izvještaj za izdavatelje - Poduzeća","PFI-IZD-POD","Polugodišnji financijski izvještaj za izdavatelje - Poduzeća"]
["PFI-IZD-ZSE - Polugodišnji financijski izvještaj za izdavatelje - ZSE","PFI-IZD-ZSE","Polugodišnji financijski izvještaj za izdavatelje - ZSE"]
["PROSPEKTI - Zahtjev za odobrenjem prospekta","PROSPEKTI","Zahtjev za odobrenjem prospekta"]
["PS-EMIR  - Obrazac za prijavu sporova između ugovornih strana","PS-EMIR ","Obrazac za prijavu sporova između ugovornih strana"]
["PUO - Popis upućenih osoba","PUO","Popis upućenih osoba"]
["QEI - Statistički kvartalni izvještaji za mirovinske fondove (ECB)","QEI","Statistički kvartalni izvještaji za mirovinske fondove (ECB)"]
[{"$f":"CONCATENATE(,B131,\" - \",C131)","v":"QEI_ODMF_ECB - Statistički kvartalni izvještaji za dobrovoljne mirovinske fondove (EIOPA i ECB)"},"QEI_ODMF_ECB","Statistički kvartalni izvještaji za dobrovoljne mirovinske fondove (EIOPA i ECB)"]
["QEI_OMF_ECB - Statistički kvartalni izvještaji za obavezne mirovinske fondove (EIOPA i ECB)","QEI_OMF_ECB","Statistički kvartalni izvještaji za obavezne mirovinske fondove (EIOPA i ECB)"]
["QES - Tromjesečni ECB izvještaj društva za osiguranje (Quarterly Reporting Solo)","QES","Tromjesečni ECB izvještaj društva za osiguranje (Quarterly Reporting Solo)"]
["QRG - Tromjesečni izvještaj društva za osiguranje (Quarterly Reporting Group)","QRG","Tromjesečni izvještaj društva za osiguranje (Quarterly Reporting Group)"]
["QRI - Tromjesečni izvještaj IORP-ova (Quarterly reporting Pension Funds individual)","QRI","Tromjesečni izvještaj IORP-ova (Quarterly reporting Pension Funds individual)"]
["QRS - Tromjesečni izvještaj društva za osiguranje (Quarterly Reporting Solo)","QRS","Tromjesečni izvještaj društva za osiguranje (Quarterly Reporting Solo)"]
["REM-BM-ID - Informacije o primitcima u investicijskim društvima","REM-BM-ID","Informacije o primitcima u investicijskim društvima"]
["ROL - Registar objekata leasinga","ROL","Registar objekata leasinga"]
["RPN-SDUS - Opći podaci o računima poslovnih namjena","RPN-SDUS","Opći podaci o računima poslovnih namjena"]
["RSR-G - Redovito nadzorno izvješće grupe osiguratelja","RSR-G","Redovito nadzorno izvješće grupe osiguratelja"]
["RSR-S - Redovito nadzorno izvješće društva za osiguranje odnosno društva za reosiguranje","RSR-S","Redovito nadzorno izvješće društva za osiguranje odnosno društva za reosiguranje"]
["SDUS-GFI - Godišnji financijski izvještaji Središnje druge ugovorne strane","SDUS-GFI","Godišnji financijski izvještaji Središnje druge ugovorne strane"]
["SDUS-TFI - Tromjesečni financijski izvještaji Središnje druge ugovorne strane","SDUS-TFI","Tromjesečni financijski izvještaji Središnje druge ugovorne strane"]
["SFCR-G - Izvješće o solventnosti i financijskom stanju grupe osiguratelja","SFCR-G","Izvješće o solventnosti i financijskom stanju grupe osiguratelja"]
["SFCR-S - Izvješće o solventnosti i financijskom stanju društva za osiguranje odnosno društva za reosiguranje","SFCR-S","Izvješće o solventnosti i financijskom stanju društva za osiguranje odnosno društva za reosiguranje"]
["SHS-OSIG - Godišnje izvješće za potrebe statistike ulaganja u vrijednosne papire","SHS-OSIG","Godišnje izvješće za potrebe statistike ulaganja u vrijednosne papire"]
["SI-DATINS - Sistematski internalizator","SI-DATINS","Sistematski internalizator"]
["SIMF_FIZ - Društva za upravljanje fondovima: DZU UCITS, UAIF, OMD i DMD - obavijesti o upisu i promjeni relevantnih poslovnih subjekata (fizičke osobe)","SIMF_FIZ","Društva za upravljanje fondovima: DZU UCITS, UAIF, OMD i DMD - obavijesti o upisu i promjeni relevantnih poslovnih subjekata (fizičke osobe)"]
["SIMF_OSN - Društva za upravljanje fondovima: DZU UCITS, UAIF, OMD i DMD - dostava elektroničkih dokumenata","SIMF_OSN","Društva za upravljanje fondovima: DZU UCITS, UAIF, OMD i DMD - dostava elektroničkih dokumenata"]
["SIMF_OSS - Društva za upravljanje fondovima: DZU UCITS, UAIF, OMD i DMD - obavijesti o upisu i promjeni općih podataka subjekata nadzora","SIMF_OSS","Društva za upravljanje fondovima: DZU UCITS, UAIF, OMD i DMD - obavijesti o upisu i promjeni općih podataka subjekata nadzora"]
["SIMF_PRAV - Društva za upravljanje fondovima: DZU UCITS, UAIF, OMD i DMD - obavijesti o upisu i promjeni relevantnih poslovnih subjekata (pravne osobe)","SIMF_PRAV","Društva za upravljanje fondovima: DZU UCITS, UAIF, OMD i DMD - obavijesti o upisu i promjeni relevantnih poslovnih subjekata (pravne osobe)"]
["SIMFFON_FIZ - Fondovi: UCITS, AIF, OMF i DMF - obavijesti o upisu i promjeni relevantnih poslovnih subjekata (fizičke osobe)","SIMFFON_FIZ","Fondovi: UCITS, AIF, OMF i DMF - obavijesti o upisu i promjeni relevantnih poslovnih subjekata (fizičke osobe)"]
["SIMFFON_OSN - Fondovi: UCITS, AIF, OMF i DMF - dostava elektroničkih dokumenata","SIMFFON_OSN","Fondovi: UCITS, AIF, OMF i DMF - dostava elektroničkih dokumenata"]
["SIMFFON_OSS - Fondovi: UCITS, AIF, OMF i DMF - obavijesti o upisu i promjeni općih podataka subjekata nadzora","SIMFFON_OSS","Fondovi: UCITS, AIF, OMF i DMF - obavijesti o upisu i promjeni općih podataka subjekata nadzora"]
["SIMFFON_PRAV - Fondovi: UCITS, AIF, OMF i DMF - obavijesti o upisu i promjeni relevantnih poslovnih subjekata (pravne osobe)","SIMFFON_PRAV","Fondovi: UCITS, AIF, OMF i DMF - obavijesti o upisu i promjeni relevantnih poslovnih subjekata (pravne osobe)"]
["SRPI - Službeni registar propisanih informacija","SRPI","Službeni registar propisanih informacija"]
["SRPI-G - Službeni registar propisanih informacija - Godišnji","SRPI-G","Službeni registar propisanih informacija - Godišnji"]
["SRPI-G-ESEF - Jedinstveni elektronički format za izvješćivanje","SRPI-G-ESEF","Jedinstveni elektronički format za izvješćivanje"]
["SRPI-K - Službeni registar propisanih informacija - Kvartalni","SRPI-K","Službeni registar propisanih informacija - Kvartalni"]
["SRPI-P - Službeni registar propisanih informacija - Polugodišnji","SRPI-P","Službeni registar propisanih informacija - Polugodišnji"]
["STAT-SDVP - Statistički podaci za središnji depozitorij vrijednosnih papira","STAT-SDVP","Statistički podaci za središnji depozitorij vrijednosnih papira"]
["TEST-SDUS - Izvještaj o provedenom preispitivanju modela, ispitivanju otpornosti na stres i retroaktivnom ispitivanju","TEST-SDUS","Izvještaj o provedenom preispitivanju modela, ispitivanju otpornosti na stres i retroaktivnom ispitivanju"]
["T-FAKTORING - Tromjesečni izvještaj faktoring društava","T-FAKTORING","Tromjesečni izvještaj faktoring društava"]
["T-FAKTORING-LIK - Tromjesečni izvještaj faktoring društva u likvidaciji","T-FAKTORING-LIK","Tromjesečni izvještaj faktoring društva u likvidaciji"]
["T-FIDOLIZ - Tromjesečni financijski i dodatni izvještaj leasing društava","T-FIDOLIZ","Tromjesečni financijski i dodatni izvještaj leasing društava"]
["T-FIDOLIZ-LIK - Tromjesečni financijski i dodatni izvještaj leasing društava u likvidaciji","T-FIDOLIZ-LIK","Tromjesečni financijski i dodatni izvještaj leasing društava u likvidaciji"]
["TFI-DZU - Tromjesečni financijski izvještaj društva za upravljanje UCITS fondovima","TFI-DZU","Tromjesečni financijski izvještaj društva za upravljanje UCITS fondovima"]
["TFI-IZD-AIF - Tromjesečni financijski izvještaj za izdavatelje - AIF","TFI-IZD-AIF","Tromjesečni financijski izvještaj za izdavatelje - AIF"]
["TFI-IZD-KI - Tromjesečni financijski izvještaj za izdavatelje - Kreditne institucije","TFI-IZD-KI","Tromjesečni financijski izvještaj za izdavatelje - Kreditne institucije"]
["TFI-IZD-OSIG - Tromjesečni financijski izvještaj za izdavatelje - Društva za osiguranje","TFI-IZD-OSIG","Tromjesečni financijski izvještaj za izdavatelje - Društva za osiguranje"]
["TFI-IZD-POD - Tromjesečni financijski izvještaj za izdavatelje - Poduzeća","TFI-IZD-POD","Tromjesečni financijski izvještaj za izdavatelje - Poduzeća"]
["TFI-IZD-ZSE - Tromjesečni financijski izvještaj za izdavatelje - ZSE","TFI-IZD-ZSE","Tromjesečni financijski izvještaj za izdavatelje - ZSE"]
["TFI-SDVP - Tromjesečni financijski izvještaj za središnji depozitorij vrijednosnih papira","TFI-SDVP","Tromjesečni financijski izvještaj za središnji depozitorij vrijednosnih papira"]
["TID - NOVI - Izvještaj o transakcijama investicijskih društava","TID - NOVI","Izvještaj o transakcijama investicijskih društava"]
["TI-UDIF - Dodatni izvještaj-Izvještaj o udjelničarima investicijskog fonda","TI-UDIF","Dodatni izvještaj-Izvještaj o udjelničarima investicijskog fonda"]
["TI-UDIF-10 - Izvješće o prvih 10 ulagatelja investicijskih fondova","TI-UDIF-10","Izvješće o prvih 10 ulagatelja investicijskih fondova"]
["TP-SDUS - Evidencije o obrađenim transakcijama i pozicijama središnje druge ugovorne stranke","TP-SDUS","Evidencije o obrađenim transakcijama i pozicijama središnje druge ugovorne stranke"]
["UK-SDUS - Izvještaj o upravljanju kolateralom","UK-SDUS","Izvještaj o upravljanju kolateralom"]
["VIF - Izvještaj o valutnim izloženostima fondova","VIF","Izvještaj o valutnim izloženostima fondova"]
["ZSE-APA - Izvještaj o klijentima, objavljenim izvješćima i prihodima APA-e","ZSE-APA","Izvještaj o klijentima, objavljenim izvješćima i prihodima APA-e"]
["ZSE-D - Dnevni izvještaj ZSE","ZSE-D","Dnevni izvještaj ZSE"]
["ZSE-GFI - Godišnji financijski izvještaj ZSE","ZSE-GFI","Godišnji financijski izvještaj ZSE"]
[" - "]
[" - "]